lending/lending_fUSD_20250131
["ID","MTS","AMOUNT","RATE_DAILY","PERIOD"]
[351071127,1738324251532,-500.0,0.00016575,2]
[351071128,1738324251542,-1255.47,0.00016575,2]
[351071129,1738324251551,-185.55045164,0.00016575,2]
[351071130,1738324251560,-1304.68525713,0.00016575,2]
[351071131,1738324251575,-3603.36474287,0.00016575,2]
[351071132,1738324251585,-650.38,0.00016575,2]
[351071133,1738324251593,-8946.44,0.00016575,2]
[351071134,1738324251603,-2502.36,0.00016575,2]
[351071135,1738324251612,-6290.77427828,0.00016575,2]
[351071136,1738324251624,-2523.53228892,0.00016575,2]
[351071137,1738324251635,-4928.3634328,0.00016575,2]
[351071138,1738324251645,-274.4544758,0.00016575,2]
[351071139,1738324251654,-1612.26,0.00016575,2]
[351071140,1738324251663,-500.0,0.00016575,2]
[351071141,1738324251672,-689.81,0.00016575,2]
[351071142,1738324251685,-721.22,0.00016575,2]
[351071143,1738324251694,-500.0,0.00016575,2]
[351071144,1738324251703,-500.0,0.00016575,2]
[351071145,1738324251712,-500.0,0.00016575,2]
[351071146,1738324251722,-2525.83,0.00016575,2]
[351071147,1738324251731,-959.01,0.00016575,2]
[351071148,1738324251742,-1040.27,0.00016575,2]
[351071149,1738324251751,-500.0,0.00016575,2]
[351071150,1738324251760,-500.0,0.00016575,2]
[351071151,1738324251769,-1700.3734111,0.00016575,2]
[351071152,1738324251780,-282.55999991,0.00016575,2]
[351071153,1738324251791,-893.04658899,0.00016575,2]
[351071154,1738324251800,-1113.32,0.00016575,2]
[351071155,1738324251809,-500.0,0.00016575,2]
[351071156,1738324251819,-617.88,0.00016575,2]
[351071157,1738324251828,-3532.00066415,0.00016575,2]
[351071158,1738324251845,-1205.82,0.00016438,2]
[351071159,1738324251855,-2162.89933585,0.00016575,2]
[351071160,1738324251864,-500.0,0.00016575,2]
[351071161,1738324251874,-1040.72,0.00016575,2]
[351071162,1738324251884,-1058.53,0.00016575,2]
[351071163,1738324251893,-1227.18,0.00016575,2]
[351071164,1738324251903,-500.0,0.00016575,2]
[351071165,1738324251912,-749.69169993,0.00016575,2]
[351071166,1738324251924,-198.43830007,0.00016575,2]
[351071167,1738324251936,-94.21808158,0.00016575,2]
[351071168,1738324251948,-405.78191842,0.00016575,2]
[351071169,1738324251958,-395.06364145,0.00016575,2]
[351071170,1738324251967,-3754.06,0.00016575,2]
[351071171,1738324251976,-500.0,0.00016575,2]
[351071172,1738324251986,-500.0,0.00016575,2]
[351071173,1738324251996,-926.1,0.00016575,2]
[351071174,1738324252006,-544.72,0.00016575,2]
[351071175,1738324252015,-500.0,0.00016575,2]
[351071176,1738324252025,-500.0,0.00016575,2]
[351071177,1738324252034,-500.0,0.00016575,2]
[351071178,1738324252044,-500.0,0.00016575,2]
[351071179,1738324252053,-1099.32,0.00016575,2]
[351071180,1738324252062,-628.86479173,0.00016575,2]
[351071181,1738324252437,-1104.57520827,0.00016575,2]
[351071182,1738324252447,-572.9,0.00016575,2]
[351071183,1738324252459,-282.4350783,0.00016575,2]
[351071184,1738324252986,-500.0,0.00016438,2]
[351071185,1738324252995,-302.66496489,0.00016575,2]
[351071186,1738324253007,-632.27300002,0.00016575,2]
[351071187,1738324253019,-425.1582348,0.00016575,2]
[351071188,1738324253632,-480.40872199,0.00016575,2]
[351071189,1738324253642,-72.64009901,0.00016575,2]
[351071190,1738324253685,-427.35990099,0.00016575,2]
[351071191,1738324253695,-500.0,0.00016575,2]
[351071192,1738324253704,-500.0,0.00016575,2]
[351071193,1738324253715,-500.0,0.00016575,2]
[351071194,1738324253726,-999.67,0.00016575,2]
[351071195,1738324253735,-1048.57,0.00016575,2]
[351071196,1738324253745,-500.0,0.00016575,2]
[351071197,1738324253754,-804.81,0.00016575,2]
[351071198,1738324253765,-1145.86,0.00016575,2]
[351071199,1738324253775,-534.82,0.00016575,2]
[351071200,1738324253785,-2648.61,0.00016575,2]
[351071201,1738324253794,-1037.49,0.00016575,2]
[351071202,1738324253804,-500.0,0.00016575,2]
[351071203,1738324253813,-2396.97,0.00016575,2]
[351071204,1738324253824,-1402.68,0.00016575,2]
[351071205,1738324253836,-3204.6,0.00016575,2]
[351071206,1738324253845,-1040.29,0.00016575,2]
[351071207,1738324253856,-2903.69,0.00016575,2]
[351071208,1738324253867,-500.0,0.00016575,2]
[351071209,1738324253877,-7288.6,0.00016575,2]
[351071210,1738324253888,-500.0,0.00016575,2]
[351071211,1738324253896,-500.0,0.00016575,2]
[351071212,1738324253906,-587.79,0.00016575,2]
[351071213,1738324253916,-562.58,0.00016575,2]
[351071214,1738324253925,-500.0,0.00016575,2]
[351071215,1738324253935,-2495.23,0.00016575,2]
[351071216,1738324253945,-515.14,0.00016575,2]
[351071217,1738324253954,-1028.79,0.00016575,2]
[351071218,1738324253963,-2248.25,0.00016575,2]
[351071219,1738324253973,-2728.26,0.00016575,2]
[351071220,1738324253983,-154.135674,0.00016575,2]
[351071221,1738324253992,-500.0,0.00016575,2]
[351071222,1738324254002,-500.0,0.00016575,2]
[351071223,1738324254011,-846.48,0.00016575,2]
[351071224,1738324254021,-2792.79,0.00016575,2]
[351071225,1738324254031,-1342.18,0.00016575,2]
[351071226,1738324254041,-500.0,0.00016575,2]
[351071227,1738324254050,-500.0,0.00016575,2]
[351071228,1738324254059,-500.0,0.00016575,2]
[351071229,1738324254069,-1680.63,0.00016575,2]
[351071230,1738324254078,-500.0,0.00016575,2]
[351071231,1738324254088,-500.0,0.00016575,2]
[351071232,1738324254098,-500.0,0.00016575,2]
[351071233,1738324254107,-843.34,0.00016575,2]
[351071234,1738324254117,-620.67,0.00016575,2]
[351071235,1738324254126,-229.64380752,0.00016575,2]
[351071236,1738324254136,-1248.18,0.00016575,2]
[351071237,1738324254146,-500.0,0.00016575,2]
[351071238,1738324254155,-500.0,0.00016575,2]
[351071239,1738324254164,-500.0,0.00016575,2]
[351071240,1738324254174,-1421.21,0.00016575,2]
[351071241,1738324254183,-1109.38,0.00016575,2]
[351071242,1738324254192,-6503.84,0.00016575,2]
[351071243,1738324254202,-500.0,0.00016575,2]
[351071244,1738324254212,-500.0,0.00016575,2]
[351071245,1738324254221,-500.0,0.00016575,2]
[351071246,1738324254230,-1665.65,0.00016575,2]
[351071247,1738324254240,-2053.62,0.00016575,2]
[351071248,1738324254250,-1885.24,0.00016575,2]
[351071249,1738324254260,-720.26,0.00016575,2]
[351071250,1738324254269,-359.48853506,0.00016575,2]
[351071251,1738324254279,-325.0,0.00016575,2]
[351071252,1738324254289,-520.09212046,0.00016575,2]
[351071253,1738324254298,-3146.24,0.00016575,2]
[351071254,1738324254307,-996.21,0.00016575,2]
[351071255,1738324254317,-500.0,0.00016575,2]
[351071256,1738324254326,-500.0,0.00016575,2]
[351071257,1738324254335,-558.19,0.00016575,2]
[351071258,1738324254345,-1284.37,0.00016575,2]
[351071259,1738324254354,-2333.73,0.00016575,2]
[351071260,1738324254363,-2084.37,0.00016575,2]
[351071261,1738324254372,-2854.98,0.00016575,2]
[351071262,1738324254382,-884.01,0.00016575,2]
[351071263,1738324254392,-1136.43,0.00016575,2]
[351071264,1738324254401,-1871.77,0.00016575,2]
[351071265,1738324254411,-500.0,0.00016575,2]
[351071266,1738324254420,-1104.94,0.00016575,2]
[351071267,1738324254430,-500.0,0.00016575,2]
[351071268,1738324254441,-2946.69,0.00016575,2]
[351071269,1738324254452,-941.15,0.00016575,2]
[351071270,1738324254465,-1115.29,0.00016575,2]
[351071271,1738324254475,-828.12,0.00016575,2]
[351071272,1738324254484,-500.0,0.00016575,2]
[351071273,1738324254494,-500.0,0.00016575,2]
[351071274,1738324254504,-2224.33,0.00016575,2]
[351071275,1738324254513,-500.0,0.00016575,2]
[351071276,1738324254523,-3489.24,0.00016575,2]
[351071277,1738324254537,-746.73,0.00016575,2]
[351071278,1738324254546,-1806.93,0.00016575,2]
[351071279,1738324254556,-1077.54,0.00016575,2]
[351071280,1738324254566,-500.0,0.00016575,2]
[351071281,1738324254576,-1991.21,0.00016575,2]
[351071282,1738324254585,-760.46,0.00016575,2]
[351071283,1738324254595,-526.27,0.00016575,2]
[351071284,1738324254605,-753.74,0.00016575,2]
[351071285,1738324254615,-1343.99,0.00016575,2]
[351071286,1738324254624,-500.0,0.00016575,2]
[351071287,1738324254633,-855.25,0.00016575,2]
[351071288,1738324254643,-1812.45,0.00016575,2]
[351071289,1738324254652,-1716.99,0.00016575,2]
[351071290,1738324254661,-349.7344641,0.00016575,2]
[351071291,1738324254671,-3889.3,0.00016575,2]
[351071292,1738324254680,-500.0,0.00016575,2]
[351071293,1738324254693,-528.68,0.00016575,2]
[351071294,1738324254702,-3037.65,0.00016575,2]
[351071295,1738324254712,-2291.82,0.00016575,2]
[351071296,1738324254786,-2335.67,0.00016575,2]
[351071297,1738324254796,-500.0,0.00016575,2]
[351071298,1738324254805,-312.58,0.00016575,2]
[351071299,1738324254815,-1603.26,0.00016575,2]
[351071300,1738324254825,-1077.26,0.00016575,2]
[351071301,1738324254837,-2970.63,0.00016575,2]
[351071302,1738324254847,-500.0,0.00016575,2]
[351071303,1738324254856,-611.16,0.00016575,2]
[351071304,1738324254865,-500.0,0.00016575,2]
[351071305,1738324254874,-833.14,0.00016575,2]
[351071306,1738324254883,-1305.13,0.00016575,2]
[351071307,1738324254892,-500.0,0.00016575,2]
[351071308,1738324254900,-2952.79,0.00016575,2]
[351071309,1738324254910,-1857.79,0.00016575,2]
[351071310,1738324254918,-500.0,0.00016575,2]
[351071311,1738324254927,-2508.56,0.00016575,2]
[351071312,1738324254939,-571.37,0.00016575,2]
[351071313,1738324254948,-500.0,0.00016575,2]
[351071314,1738324254957,-500.0,0.00016575,2]
[351071315,1738324254967,-1709.43,0.00016575,2]
[351071316,1738324254975,-2131.57,0.00016575,2]
[351071317,1738324254984,-1359.58,0.00016575,2]
[351071318,1738324254993,-7600.5,0.00016575,2]
[351071319,1738324255002,-2358.13,0.00016575,2]
[351071320,1738324255011,-500.0,0.00016575,2]
[351071321,1738324255020,-6466.54,0.00016575,2]
[351071322,1738324255029,-4392.29,0.00016575,2]
[351071323,1738324255040,-3157.78,0.00016575,2]
[351071324,1738324255049,-3526.47,0.00016575,2]
[351071325,1738324255059,-1166.07,0.00016575,2]
[351071326,1738324255070,-1381.21,0.00016575,2]
[351071327,1738324255080,-502.7,0.00016575,2]
[351071328,1738324255089,-4490.0,0.00016575,2]
[351071329,1738324255098,-3967.33,0.00016575,2]
[351071330,1738324255107,-2412.99,0.00016575,2]
[351071331,1738324255117,-500.0,0.00016575,2]
[351071332,1738324255126,-500.0,0.00016575,2]
[351071333,1738324255135,-4440.42,0.00016575,2]
[351071334,1738324255144,-1626.43,0.00016575,2]
[351071335,1738324255153,-734.46,0.00016575,2]
[351071336,1738324255162,-1323.77,0.00016575,2]
[351071337,1738324255171,-2783.46,0.00016575,2]
[351071338,1738324255180,-6910.43,0.00016575,2]
[351071339,1738324255190,-2558.37,0.00016575,2]
[351071340,1738324255200,-500.0,0.00016575,2]
[351071341,1738324255209,-500.0,0.00016575,2]
[351071342,1738324255218,-500.0,0.00016575,2]
[351071343,1738324255227,-3244.93,0.00016575,2]
[351071344,1738324255236,-2061.66,0.00016575,2]
[351071345,1738324255248,-1646.19,0.00016575,2]
[351071346,1738324255258,-1490.44,0.00016575,2]
[351071347,1738324255269,-601.89,0.00016575,2]
[351071348,1738324255280,-1606.89,0.00016575,2]
[351071349,1738324255290,-1840.26,0.00016575,2]
[351071350,1738324255299,-580.84,0.00016575,2]
[351071351,1738324255309,-2593.65,0.00016575,2]
[351071352,1738324255318,-5319.28,0.00016575,2]
[351071353,1738324255329,-1571.41,0.00016575,2]
[351071354,1738324255338,-526.32024082,0.00016575,2]
[351071355,1738324255348,-500.0,0.00016575,2]
[351071356,1738324255357,-504.56748471,0.00016575,2]
[351071357,1738324255366,-500.0,0.00016575,2]
[351071358,1738324255375,-500.0,0.00016575,2]
[351071359,1738324255384,-1321.81,0.00016575,2]
[351071360,1738324255394,-673.9,0.00016575,2]
[351071361,1738324255404,-500.0,0.00016575,2]
[351071362,1738324255418,-500.0,0.00016575,2]
[351071363,1738324255428,-7695.6,0.00016575,2]
[351071364,1738324255439,-500.0,0.00016575,2]
[351071365,1738324255450,-531.37,0.00016575,2]
[351071366,1738324255461,-1931.96,0.00016575,2]
[351071367,1738324255471,-907.61,0.00016575,2]
[351071368,1738324255480,-500.0,0.00016575,2]
[351071369,1738324255490,-12891.46,0.00016575,2]
[351071370,1738324255501,-1128.39,0.00016575,2]
[351071371,1738324255511,-500.0,0.00016575,2]
[351071372,1738324255520,-1099.89,0.00016575,2]
[351071373,1738324255530,-2100.31,0.00016575,2]
[351071374,1738324255540,-4096.93,0.00016575,2]
[351071375,1738324255549,-534.18,0.00016575,2]
[351071376,1738324255560,-1110.8,0.00016575,2]
[351071377,1738324255569,-500.0,0.00016575,2]
[351071378,1738324255580,-500.0,0.00016575,2]
[351071379,1738324255591,-500.0,0.00016575,2]
[351071380,1738324255600,-538.53,0.00016575,2]
[351071381,1738324255611,-2207.75,0.00016575,2]
[351071382,1738324255621,-638.79,0.00016575,2]
[351071383,1738324255631,-1651.63,0.00016575,2]
[351071384,1738324255640,-500.0,0.00016575,2]
[351071385,1738324255649,-1205.82,0.00016575,2]
[351071386,1738324255658,-500.0,0.00016575,2]
[351071387,1738324255667,-547.86,0.00016625,2]
[351071388,1738324255676,-11711.6757146,0.00016658,2]
[351071389,1738324255686,-547.86,0.00016711,2]
[351071390,1738324255695,-547.86,0.00016711,2]
[351071391,1738324255704,-547.86,0.00016711,2]
[351071392,1738324255714,-547.86,0.00016711,2]
[351071393,1738324255723,-547.86,0.00016711,2]
[351071394,1738324255732,-500.0,0.00016712,2]
[351071395,1738324255741,-500.0,0.00016712,2]
[351071396,1738324255750,-500.0,0.00016712,2]
[351071397,1738324255760,-510.35243541,0.00016712,2]
[351071398,1738324255769,-500.0,0.00016712,2]
[351071399,1738324255778,-667.17,0.00016712,2]
[351071400,1738324255787,-500.0,0.00016712,2]
[351071401,1738324255797,-500.0,0.00016712,2]
[351071402,1738324255807,-500.0,0.00016712,2]
[351071403,1738324255816,-500.0,0.00016712,2]
[351071404,1738324255826,-540.27404144,0.00016712,2]
[351071405,1738324255835,-2074.409289,0.00016712,2]
[351071406,1738324255844,-820.59,0.00016712,2]
[351071407,1738324255854,-153.436238,0.00016712,2]
[351071408,1738324255863,-500.0,0.00016712,2]
[351071409,1738324255872,-603.05032651,0.00016712,2]
[351071410,1738324255881,-500.0,0.00016712,2]
[351071411,1738324255891,-759.88,0.00016712,2]
[351071412,1738324255901,-500.0,0.00016712,2]
[351071413,1738324255911,-595.20059291,0.00016712,2]
[351071414,1738324255920,-1436.587895,0.00016712,2]
[351071415,1738324255930,-500.0,0.00016712,2]
[351071416,1738324255941,-500.0,0.00016712,2]
[351071417,1738324255950,-473.6382284,0.00016712,2]
[351071418,1738324255960,-500.0,0.00016712,2]
[351071419,1738324255969,-512.06862919,0.00016712,2]
[351071420,1738324255979,-500.0,0.00016712,2]
[351071421,1738324255988,-500.0,0.00016712,2]
[351071422,1738324255999,-617.56,0.00016712,2]
[351071423,1738324256008,-272.53043042,0.00016712,2]
[351071424,1738324256018,-500.0,0.00016712,2]
[351071425,1738324256027,-500.0,0.00016712,2]
[351071426,1738324256037,-500.0,0.00016712,2]
[351071427,1738324256046,-500.0,0.00016712,2]
[351071428,1738324256056,-500.0,0.00016712,2]
[351071429,1738324256065,-500.0,0.00016712,2]
[351071430,1738324256075,-500.0,0.00016712,2]
[351071431,1738324256084,-500.0,0.00016712,2]
[351071432,1738324256093,-500.0,0.00016712,2]
[351071433,1738324256103,-500.0,0.00016712,2]
[351071434,1738324256113,-500.0,0.00016712,2]
[351071435,1738324256123,-500.0,0.00016712,2]
[351071436,1738324256132,-500.0,0.00016712,2]
[351071437,1738324256141,-299.45808106,0.00016712,2]
[351071438,1738324256151,-505.93754943,0.00016712,2]
[351071439,1738324256160,-509.1,0.00016712,2]
[351071440,1738324256169,-1234.71,0.00016712,2]
[351071441,1738324256179,-500.0,0.00016712,2]
[351071442,1738324256189,-536.29,0.00016712,2]
[351071443,1738324256198,-1312.75,0.00016712,2]
[351071444,1738324256208,-500.0,0.00016712,2]
[351071445,1738324256217,-500.0,0.00016712,2]
[351071446,1738324256227,-509.36886108,0.00016712,2]
[351071447,1738324256237,-500.0,0.00016712,2]
[351071448,1738324256246,-1015.25,0.00016712,2]
[351071449,1738324256256,-725.65,0.00016712,2]
[351071450,1738324256265,-489.4974674,0.00016712,2]
[351071451,1738324256274,-500.0,0.00016712,2]
[351071452,1738324256283,-500.0,0.00016712,2]
[351071453,1738324256293,-721.66,0.00016712,2]
[351071454,1738324256302,-500.0,0.00016712,2]
[351071455,1738324256312,-500.0,0.00016712,2]
[351071456,1738324256322,-693.56,0.00016712,2]
[351071457,1738324256332,-563.28,0.00016712,2]
[351071458,1738324256344,-500.0,0.00016712,2]
[351071459,1738324256354,-1762.66,0.00016712,2]
[351071460,1738324256364,-500.0,0.00016712,2]
[351071461,1738324256374,-500.0,0.00016712,2]
[351071462,1738324256383,-500.0,0.00016712,2]
[351071463,1738324256392,-500.0,0.00016712,2]
[351071464,1738324256402,-580.28,0.00016712,2]
[351071465,1738324256411,-1817.38,0.00016712,2]
[351071466,1738324256420,-742.3,0.00016712,2]
[351071467,1738324256430,-500.0,0.00016712,2]
[351071468,1738324256440,-500.0,0.00016712,2]
[351071469,1738324256449,-500.0,0.00016712,2]
[351071470,1738324256463,-500.0,0.00016712,2]
[351071471,1738324256472,-500.0,0.00016712,2]
[351071472,1738324256482,-1911.73,0.00016712,2]
[351071473,1738324256494,-500.0,0.00016712,2]
[351071474,1738324256507,-500.0,0.00016712,2]
[351071475,1738324256517,-1483.82,0.00016712,2]
[351071476,1738324256526,-500.0,0.00016712,2]
[351071477,1738324256539,-500.0,0.00016712,2]
[351071478,1738324256550,-500.0,0.00016712,2]
[351071479,1738324256559,-500.0,0.00016712,2]
[351071480,1738324256569,-500.0,0.00016712,2]
[351071481,1738324256579,-500.0,0.00016712,2]
[351071482,1738324256589,-755.76,0.00016712,2]
[351071483,1738324256598,-500.0,0.00016712,2]
[351071484,1738324256607,-500.0,0.00016712,2]
[351071485,1738324256616,-1267.56,0.00016712,2]
[351071486,1738324256625,-500.0,0.00016712,2]
[351071487,1738324256635,-500.0,0.00016712,2]
[351071488,1738324256643,-500.0,0.00016712,2]
[351071489,1738324256653,-876.85,0.00016712,2]
[351071490,1738324256662,-500.0,0.00016712,2]
[351071491,1738324256671,-500.0,0.00016712,2]
[351071492,1738324256681,-500.0,0.00016712,2]
[351071493,1738324256692,-631.82,0.00016712,2]
[351071494,1738324256701,-500.0,0.00016712,2]
[351071495,1738324256711,-500.0,0.00016712,2]
[351071496,1738324256721,-500.0,0.00016712,2]
[351071497,1738324256732,-501.1296108,0.00016712,2]
[351071498,1738324256742,-500.0,0.00016712,2]
[351071499,1738324256752,-946.0,0.00016712,2]
[351071500,1738324256762,-793.42,0.00016712,2]
[351071501,1738324256772,-500.0,0.00016712,2]
[351071502,1738324256782,-1051.17,0.00016712,2]
[351071503,1738324256792,-614.76,0.00016712,2]
[351071504,1738324256801,-500.0,0.00016712,2]
[351071505,1738324256811,-1621.42,0.00016712,2]
[351071506,1738324256820,-500.0,0.00016712,2]
[351071507,1738324256829,-153.566122,0.00016712,2]
[351071508,1738324256838,-500.0,0.00016712,2]
[351071509,1738324256848,-1050.41,0.00016712,2]
[351071510,1738324256857,-500.0,0.00016712,2]
[351071511,1738324256866,-151.0,0.00016712,2]
[351071512,1738324256875,-500.0,0.00016712,2]
[351071513,1738324256884,-571.26,0.00016712,2]
[351071514,1738324256893,-642.87914328,0.00016712,2]
[351071515,1738324256902,-1105.7,0.00016712,2]
[351071516,1738324256911,-719.71,0.00016712,2]
[351071517,1738324256920,-500.0,0.00016712,2]
[351071518,1738324256929,-500.0,0.00016712,2]
[351071519,1738324256939,-522.61,0.00016712,2]
[351071520,1738324256948,-500.0,0.00016712,2]
[351071521,1738324256956,-1206.79,0.00016712,2]
[351071522,1738324256965,-587.4811993,0.00016712,2]
[351071523,1738324256974,-500.0,0.00016712,2]
[351071524,1738324256983,-500.0,0.00016712,2]
[351071525,1738324256992,-2899.61,0.00016712,2]
[351071526,1738324257001,-1118.53,0.00016712,2]
[351071527,1738324257010,-602.16,0.00016712,2]
[351071528,1738324257019,-844.5,0.00016712,2]
[351071529,1738324257028,-500.0,0.00016712,2]
[351071530,1738324257037,-500.0,0.00016712,2]
[351071531,1738324257046,-500.0,0.00016712,2]
[351071532,1738324257055,-500.0,0.00016712,2]
[351071533,1738324257064,-722.66,0.00016712,2]
[351071534,1738324257073,-500.0,0.00016712,2]
[351071535,1738324257082,-500.0,0.00016712,2]
[351071536,1738324257090,-745.68,0.00016712,2]
[351071537,1738324257100,-500.0,0.00016712,2]
[351071538,1738324257109,-844.57,0.00016712,2]
[351071539,1738324257118,-622.82,0.00016712,2]
[351071540,1738324257127,-1809.29,0.00016712,2]
[351071541,1738324257135,-516.35,0.00016712,2]
[351071542,1738324257144,-500.0,0.00016712,2]
[351071543,1738324257154,-924.62,0.00016712,2]
[351071544,1738324257162,-1135.67,0.00016712,2]
[351071545,1738324257171,-1008.93,0.00016712,2]
[351071546,1738324257180,-500.0,0.00016712,2]
[351071547,1738324257190,-500.0,0.00016712,2]
[351071548,1738324257199,-500.0,0.00016712,2]
[351071549,1738324257209,-2056.77,0.00016712,2]
[351071550,1738324257218,-1566.7,0.00016712,2]
[351071551,1738324257227,-1749.3,0.00016712,2]
[351071552,1738324257236,-500.0,0.00016712,2]
[351071553,1738324257245,-500.0,0.00016712,2]
[351071554,1738324257254,-1197.8,0.00016712,2]
[351071555,1738324257264,-803.71,0.00016712,2]
[351071556,1738324257274,-920.16,0.00016712,2]
[351071557,1738324257283,-500.0,0.00016712,2]
[351071558,1738324257293,-500.0,0.00016712,2]
[351071559,1738324257304,-500.0,0.00016712,2]
[351071560,1738324257319,-1078.45,0.00016712,2]
[351071561,1738324257329,-500.0,0.00016712,2]
[351071562,1738324257338,-868.3,0.00016712,2]
[351071563,1738324257347,-1038.11,0.00016712,2]
[351071564,1738324257356,-500.0,0.00016712,2]
[351071565,1738324257365,-512.31,0.00016712,2]
[351071566,1738324257375,-1860.78,0.00016712,2]
[351071567,1738324257384,-2229.07,0.00016712,2]
[351071568,1738324257393,-625.75,0.00016712,2]
[351071569,1738324257402,-500.0,0.00016712,2]
[351071570,1738324257411,-500.0,0.00016712,2]
[351071571,1738324257420,-151.0,0.00016712,2]
[351071572,1738324257429,-151.0,0.00016712,2]
[351071573,1738324257439,-151.0,0.00016712,2]
[351071574,1738324257448,-151.0,0.00016712,2]
[351071575,1738324257465,-151.0,0.00016712,2]
[351071576,1738324257474,-151.0,0.00016712,2]
[351071577,1738324257483,-500.0,0.00016712,2]
[351071578,1738324257492,-587.49,0.00016712,2]
[351071579,1738324257502,-151.0,0.00016712,2]
[351071580,1738324257511,-151.0,0.00016712,2]
[351071581,1738324257520,-151.0,0.00016712,2]
[351071582,1738324257529,-151.0,0.00016712,2]
[351071583,1738324257540,-151.0,0.00016712,2]
[351071584,1738324257549,-151.0,0.00016712,2]
[351071585,1738324257557,-151.0,0.00016712,2]
[351071586,1738324257567,-151.0,0.00016712,2]
[351071587,1738324257576,-151.0,0.00016712,2]
[351071588,1738324257585,-151.0,0.00016712,2]
[351071589,1738324257594,-151.0,0.00016712,2]
[351071590,1738324257603,-500.0,0.00016712,2]
[351071591,1738324257612,-151.0,0.00016712,2]
[351071592,1738324257621,-151.0,0.00016712,2]
[351071593,1738324257630,-151.0,0.00016712,2]
[351071594,1738324257639,-151.0,0.00016712,2]
[351071595,1738324257647,-500.0,0.00016712,2]
[351071596,1738324257656,-500.0,0.00016712,2]
[351071597,1738324257665,-500.0,0.00016712,2]
[351071598,1738324257674,-151.0,0.00016712,2]
[351071599,1738324257683,-151.0,0.00016712,2]
[351071600,1738324257695,-151.0,0.00016712,2]
[351071601,1738324257704,-702.08,0.00016712,2]
[351071602,1738324257713,-151.0,0.00016712,2]
[351071603,1738324257722,-151.0,0.00016712,2]
[351071604,1738324257731,-902.1,0.00016712,2]
[351071605,1738324257740,-151.0,0.00016712,2]
[351071606,1738324257749,-151.0,0.00016712,2]
[351071607,1738324257758,-500.0,0.00016712,2]
[351071608,1738324257767,-151.0,0.00016712,2]
[351071609,1738324257776,-151.0,0.00016712,2]
[351071610,1738324257785,-151.0,0.00016712,2]
[351071611,1738324257794,-151.0,0.00016712,2]
[351071612,1738324257803,-151.0,0.00016712,2]
[351071613,1738324257812,-1092.24,0.00016712,2]
[351071614,1738324257821,-151.0,0.00016712,2]
[351071615,1738324257829,-151.0,0.00016712,2]
[351071616,1738324257839,-151.0,0.00016712,2]
[351071617,1738324257848,-151.0,0.00016712,2]
[351071618,1738324257858,-151.0,0.00016712,2]
[351071619,1738324257867,-151.0,0.00016712,2]
[351071620,1738324257876,-151.0,0.00016712,2]
[351071621,1738324257885,-151.0,0.00016712,2]
[351071622,1738324257895,-151.0,0.00016712,2]
[351071623,1738324257904,-151.0,0.00016712,2]
[351071624,1738324257914,-500.0,0.00016712,2]
[351071625,1738324257923,-1500.41,0.00016712,2]
[351071626,1738324257932,-1310.52,0.00016712,2]